bitfinex/quotes_ETHUSD_20260108
["timestamp","ask_amount","ask_price","bid_price","bid_amount"]
[1767874114568,0.95362459,3108.7,3107.5,0.9909136]
[1767874114770,0.92152481,3108.5,3107.4,0.002]
[1767874114981,0.92152481,3108.3,3107.4,0.002]
[1767874115663,4.13875088,3108.3,3107.4,0.002]
[1767874116063,0.844,3108.4,3107.4,0.9929136]
[1767874116064,4.06115712,3108.4,3107.4,0.9929136]
[1767874116267,4.06115712,3108.4,3107.5,0.74293697]
[1767874116704,7.27831424,3108.4,3107.5,0.74293697]
[1767874117022,0.92152481,3108.3,3107.4,0.002]
[1767874117998,0.03209978,3108.3,3107.4,0.9929136]
[1767874118597,4.09322351,3108.4,3107.4,0.9929136]
[1767874118797,4.09322351,3108.4,3107.7,0.002]
[1767874119024,0.92152481,3108.3,3107.7,0.002]
[1767874119300,3.95559022,3108.6,3107.7,0.9929136]
[1767874119301,0.73869751,3108.6,3107.7,0.9929136]
[1767874119501,0.92152481,3109.2,3107.8,0.9909136]
[1767874119666,0.03209978,3109.1,3107.8,0.9909136]
[1767874119869,3.21646831,3109.0,3107.9,0.9909136]
[1767874120122,3.21646831,3109.0,3107.8,3.21767018]
[1767874120123,0.95362459,3108.9,3107.8,3.21767018]
[1767874120274,0.03209978,3108.8,3107.7,4.24285305]
[1767874120467,0.03209978,3108.8,3107.8,3.21770065]
[1767874120689,0.95362459,3108.9,3107.7,4.21067747]
[1767874120908,0.95362459,3108.9,3107.8,3.63875323]
[1767874120909,0.92152481,3108.9,3107.8,3.63875323]
[1767874121117,3.24856809,3109.0,3107.9,0.9909136]
[1767874121322,3.21646831,3109.0,3107.9,0.9909136]
[1767874121674,6.4650364,3109.0,3107.9,0.9909136]
[1767874122002,3.21646831,3109.0,3108.0,4.20841681]
[1767874122174,0.92152481,3108.9,3107.8,0.42106775]
[1767874122373,0.95362459,3108.8,3107.7,0.002]
[1767874122591,0.845,3108.7,3107.7,0.9929136]
[1767874122806,0.03209978,3108.6,3107.7,4.21069035]
[1767874123107,0.03209978,3108.6,3107.7,0.9929136]
[1767874123304,0.95362459,3108.7,3107.7,0.002]
[1767874123487,1.13027707,3108.7,3107.7,0.002]
[1767874124008,3.42560598,3108.7,3107.7,0.9929136]
[1767874124197,3.24888292,3108.7,3107.7,0.9929136]
[1767874124512,4.09388292,3108.7,3107.7,0.9929136]
[1767874124712,4.09389792,3108.7,3107.7,0.9929136]
[1767874125076,0.03209978,3108.7,3107.7,0.9929136]
[1767874125302,0.845,3108.9,3107.9,0.9909136]
[1767874125802,0.845,3108.9,3107.7,0.002]
[1767874125803,0.95362459,3108.8,3107.7,0.002]
[1767874126009,4.13830352,3108.7,3107.7,3.21981381]
[1767874126182,0.03209978,3108.6,3107.7,3.21981381]
[1767874126390,3.21677871,3108.7,3107.7,4.21072741]
[1767874126778,3.21671357,3108.8,3107.7,7.42854122]
[1767874126980,3.21671357,3108.8,3107.8,0.74285412]
[1767874127374,0.95362459,3108.7,3107.8,0.74285412]
[1767874127602,0.95362459,3108.7,3107.7,0.002]
[1767874128003,4.17045169,3108.7,3107.7,0.002]
[1767874128599,0.03209978,3108.7,3107.8,0.9909136]
[1767874128802,0.845,3108.8,3108.0,0.9909136]
[1767874129214,4.13778622,3109.2,3108.0,0.9909136]
[1767874129413,0.001,3109.3,3108.2,0.9909136]
[1767874129588,0.41485197,3109.3,3108.4,0.9909136]
[1767874129932,0.92152481,3109.2,3108.3,0.03217191]
[1767874130216,0.92152481,3109.0,3108.0,4.20833015]
[1767874130389,0.95362459,3108.9,3107.7,0.9929136]
[1767874130594,0.95362459,3108.9,3108.0,3.21748232]
[1767874130806,0.95362459,3108.9,3108.0,3.86099438]
[1767874131005,0.95362459,3108.9,3108.0,3.21748232]
[1767874131401,0.92152481,3108.9,3108.0,3.21748232]
[1767874131618,0.845,3109.0,3108.0,4.20839592]
[1767874131988,0.845,3109.0,3106.1,0.002]
[1767874131989,0.92152481,3108.7,3106.1,0.002]
[1767874132181,0.92152481,3108.3,3106.2,0.9909136]
[1767874132418,0.92152481,3108.1,3106.3,1.02310623]
[1767874132792,0.845,3108.0,3106.3,1.02310623]
[1767874133028,0.845,3107.9,3106.3,1.02310623]
[1767874133336,1.76652481,3107.8,3106.3,1.02310623]
[1767874133826,1.76652481,3107.8,3106.3,0.9909136]
[1767874134491,1.76652481,3107.8,3106.5,0.9909136]
[1767874134691,0.845,3107.7,3106.7,0.9909136]
[1767874134894,0.92152481,3107.6,3106.6,0.74292345]
[1767874135234,0.92152481,3107.6,3106.4,7.42923448]
[1767874135235,0.845,3107.5,3106.4,3.21916044]
[1767874135605,0.845,3107.4,3106.4,3.21916044]
[1767874135998,0.845,3107.3,3106.4,3.21916044]
[1767874136334,1.76652481,3107.3,3106.3,3.21922266]
[1767874136491,4.98477172,3107.3,3106.1,6.44091886]
[1767874136694,2.10431656,3107.3,3106.2,0.74318325]
[1767874137203,0.845,3107.3,3106.3,0.9909136]
[1767874137405,3.21806471,3107.5,3106.3,0.9909136]
[1767874137606,0.845,3107.4,3106.3,0.9909136]
[1767874137790,0.845,3107.4,3106.2,0.74318325]
[1767874137999,1.76652481,3107.3,3106.1,0.002]
[1767874138210,0.92152481,3107.2,3106.1,0.002]
[1767874138411,0.92152481,3107.1,3106.1,0.002]
[1767874138613,0.92152481,3106.9,3106.1,0.002]
[1767874138799,0.92152481,3106.7,3106.1,0.002]
[1767874138994,0.845,3106.6,3106.1,0.002]
[1767874139209,0.73586024,3106.8,3106.1,0.002]
[1767874139524,0.92152481,3107.1,3106.1,0.002]
[1767874139730,0.845,3107.0,3106.1,0.002]
[1767874140017,0.92152481,3106.9,3106.1,0.002]
[1767874140543,0.91952481,3106.7,3105.2,0.03220404]
[1767874140697,0.91952481,3106.7,3105.3,0.9909136]
[1767874140698,0.845,3106.6,3105.3,0.9909136]
[1767874140897,0.92152481,3107.9,3105.5,0.9909136]
[1767874141106,0.92152481,3107.9,3106.1,0.9909136]
[1767874141107,0.92152481,3107.7,3106.1,0.9909136]
[1767874141399,0.92152481,3107.5,3105.4,1.41526088]
[1767874141708,0.92152481,3107.3,3105.5,0.9909136]
[1767874142226,0.97172181,3107.2,3105.5,0.9909136]
[1767874142442,0.845,3107.1,3105.5,0.9909136]
[1767874142635,4.06354848,3107.0,3105.6,6.43997938]
[1767874142845,4.06354848,3107.0,3105.7,0.9286195]
[1767874142995,0.97172181,3107.2,3105.6,6.43997938]
[1767874142996,0.97172181,3107.2,3105.9,0.9286195]
[1767874143195,0.97172181,3106.8,3105.8,0.73685989]
[1767874143538,0.97172181,3106.8,3105.5,3.22004747]
[1767874143693,0.97172181,3106.8,3105.8,0.002]
[1767874143900,0.845,3106.7,3105.8,0.002]
[1767874144199,0.98506176,3106.5,3105.5,0.002]
[1767874144502,0.98506176,3106.4,3105.5,0.002]
[1767874144702,3.21936771,3106.2,3105.5,0.002]
[1767874144924,1.39149853,3106.1,3105.5,0.002]
[1767874145126,0.98506176,3106.0,3104.4,0.95262741]
[1767874145350,0.98506176,3106.0,3104.2,0.002]
[1767874145636,0.98506176,3106.0,3104.6,3.22095763]
[1767874145814,0.98506176,3106.0,3104.6,3.22099172]
[1767874146156,0.98506176,3106.0,3104.2,0.95462741]
[1767874146157,0.845,3105.9,3104.9,3.22069704]
[1767874146446,0.98506176,3105.7,3104.7,3.22091224]
[1767874146740,4.20501818,3105.7,3104.2,0.002]
[1767874146937,4.20501818,3105.7,3104.3,0.02093264]
[1767874147140,0.98506176,3105.7,3104.3,0.02093264]
[1767874147310,0.845,3105.8,3104.3,0.97356005]
[1767874147508,0.98506176,3106.3,3104.5,0.95262741]
[1767874147735,0.845,3106.2,3104.7,0.95262741]
[1767874148036,2.01306794,3106.2,3104.8,0.02092926]
[1767874148437,2.01306794,3106.2,3104.2,0.002]
[1767874148438,0.98506176,3106.1,3104.2,0.002]
[1767874148641,0.98506176,3106.1,3104.2,0.95462741]
[1767874148935,7.4244191,3105.9,3104.3,7.39530369]
[1767874149137,0.98506176,3105.8,3104.3,7.39530369]
[1767874149443,0.98506176,3105.7,3104.4,0.73973037]
[1767874149638,0.98506176,3105.7,3104.3,3.22133814]
[1767874150629,0.98506176,3105.7,3104.3,6.44267628]
[1767874150810,3.21959048,3106.0,3104.5,7.39488863]
[1767874151013,1.83006176,3105.9,3104.5,7.39488863]
[1767874151240,2.33905132,3105.9,3104.5,7.39488863]
[1767874151438,0.98506176,3105.8,3104.5,7.39488863]
[1767874151644,0.98506176,3106.1,3104.6,0.95262741]
[1767874151822,0.98506176,3106.1,3104.5,9.66339183]
[1767874151823,0.98506176,3106.1,3104.7,1.79762741]
[1767874152541,0.98506176,3106.1,3104.8,0.95262741]
[1767874153046,0.04024468,3106.0,3104.9,7.28643128]
[1767874153242,1.02530515,3106.1,3105.0,0.82390587]
[1767874153425,1.02530515,3106.1,3105.0,1.66890587]
[1767874154245,1.02530644,3106.0,3104.8,3.22081304]
[1767874154552,0.98506176,3106.0,3104.8,6.44163241]
[1767874154956,1.02530644,3106.0,3104.7,7.39447363]
[1767874155355,3.2193585,3106.3,3104.7,7.39447363]
[1767874155356,3.21926407,3106.3,3104.8,0.95262741]
[1767874155533,0.04024209,3106.2,3104.8,0.95262741]
[1767874156060,1.02530256,3106.3,3104.8,0.95262741]
[1767874156230,0.001,3105.8,3104.8,0.95262741]
[1767874156417,0.001,3105.8,3104.7,6.44184622]
[1767874156613,0.001,3105.8,3104.8,0.64418462]
[1767874157016,0.001,3105.8,3104.9,3.22071564]
[1767874157766,0.001,3105.8,3104.9,6.46891244]
[1767874157917,0.001,3105.8,3105.0,0.95262741]
[1767874158933,0.001,3105.8,3105.1,3.22050819]
[1767874159133,0.001,3105.8,3105.2,0.73231751]
[1767874160565,0.98506176,3106.7,3105.4,0.95262741]
[1767874160781,0.04023691,3106.6,3105.4,0.95262741]
[1767874161067,3.25926622,3106.6,3105.5,3.22009338]
[1767874161267,3.25926622,3106.6,3105.5,6.44018676]
[1767874161456,0.04023691,3106.6,3105.6,0.64418462]
[1767874161753,0.04023691,3106.6,3105.6,1.59681203]
[1767874161926,3.21718637,3108.4,3105.7,0.95262741]
[1767874162126,0.98506176,3108.2,3105.9,0.95262741]
[1767874162448,0.98506176,3108.0,3105.9,0.95262741]
[1767874162754,0.99785389,3107.9,3106.2,0.95262741]
[1767874163060,0.99785389,3107.9,3106.4,0.95262741]
[1767874163366,7.27938534,3108.3,3107.3,3.55931411]
[1767874163367,0.98506176,3108.3,3107.3,3.55931411]
[1767874163529,0.98606176,3108.6,3107.4,0.845]
[1767874163858,0.001,3108.6,3107.5,1.39305882]
[1767874164096,0.98506176,3108.4,3106.5,6.43811362]
[1767874164259,0.98506176,3108.4,3106.6,0.95262741]
[1767874164436,0.98506176,3108.4,3106.7,0.95262741]
[1767874164762,0.98506176,3108.4,3106.8,1.79762741]
[1767874165151,4.20218851,3108.4,3107.0,6.43707756]
[1767874165464,0.82641742,3108.3,3107.1,0.7389705]
[1767874166735,0.98506176,3108.2,3107.1,0.7389705]
[1767874166940,0.98506176,3108.2,3106.9,3.2185988]
[1767874166941,0.98506176,3108.2,3106.9,6.43724117]
[1767874167740,4.20239383,3108.2,3106.9,6.43724117]
[1767874168047,0.98506176,3108.2,3106.9,6.43724117]
[1767874168242,4.04364057,3108.3,3107.0,0.95262741]
[1767874168459,0.845,3108.5,3107.1,0.95262741]
[1767874168661,0.001,3108.1,3107.1,0.95262741]
[1767874168857,0.001,3108.1,3107.0,3.55931411]
[1767874169460,0.001,3108.1,3107.1,6.43687038]
[1767874169770,0.001,3108.1,3107.2,0.845]
[1767874170064,0.001,3108.1,3107.3,1.57318704]
[1767874170666,0.001,3108.1,3107.3,2.52581445]
[1767874171598,0.001,3108.1,3107.3,3.97853594]
[1767874171757,0.001,3108.1,3107.3,4.82358098]
[1767874173146,0.001,3108.1,3107.3,3.97857396]
[1767874173550,0.001,3108.1,3107.3,7.196802]
[1767874173850,0.001,3108.1,3107.4,0.40396966]
[1767874174374,0.001,3108.1,3107.4,1.24896966]
[1767874174539,0.001,3108.1,3107.4,0.845]
[1767874174863,0.001,3108.1,3107.4,0.85392711]
[1767874175033,0.001,3108.1,3107.4,1.84791455]
[1767874175237,0.001,3108.1,3107.4,0.85392711]
[1767874175651,0.001,3108.1,3107.5,3.21802091]
[1767874175847,0.001,3108.1,3107.6,0.83732688]
[1767874176050,0.94897264,3108.6,3107.7,0.845]
[1767874176345,0.001,3108.6,3107.8,0.00892595]
[1767874176846,3.21788532,3108.6,3107.8,0.00892595]
[1767874177053,4.80932158,3108.6,3107.8,0.00892595]
[1767874177359,0.94797264,3108.5,3107.7,0.845]
[1767874177849,0.94797264,3108.5,3107.7,4.06278369]
[1767874178976,0.94797264,3108.5,3107.7,4.09496182]
[1767874179276,0.001,3108.6,3107.7,4.09496182]
[1767874179575,0.001,3108.6,3107.8,0.48673887]
[1767874179775,0.001,3108.6,3107.9,0.03217605]
[1767874180239,6.43477039,3108.6,3107.8,0.48673887]
[1767874180444,0.94797264,3108.5,3107.8,0.844]
[1767874181071,0.001,3108.2,3107.8,4.06170151]
[1767874181874,0.001,3108.2,3107.8,4.09387861]
[1767874182742,0.001,3108.2,3107.8,7.31158888]
[1767874182950,0.001,3108.2,3107.9,3.9489425]
[1767874183249,0.94897264,3108.6,3107.7,0.002]
[1767874185193,0.94797264,3108.4,3106.4,3.21914075]
[1767874185490,16.0849284,3108.5,3106.5,0.03219056]
[1767874185491,0.94797264,3108.2,3106.5,0.03219056]
[1767874185658,0.94797264,3108.0,3106.5,0.54112244]
[1767874187083,0.94797264,3108.0,3106.6,6.43790638]
[1767874187084,0.94797264,3107.8,3106.6,6.43790638]
[1767874187486,0.94797264,3107.8,3106.7,0.03218849]
[1767874187691,0.94797264,3107.8,3106.6,3.21895319]
[1767874187887,0.94797264,3107.8,3106.6,3.22996155]
[1767874188188,1.68629125,3107.7,3106.7,0.69579426]
[1767874188565,4.16552564,3108.0,3106.7,1.6897817]
[1767874188767,0.94797264,3108.0,3106.9,0.99398744]
[1767874189160,3.21719592,3108.3,3107.1,0.99398744]
[1767874189161,4.16516856,3108.3,3107.1,0.99398744]
[1767874189358,0.94797264,3108.2,3107.0,3.21853878]
[1767874189686,0.94797264,3108.2,3106.9,3.21862375]
[1767874189889,0.94797264,3108.0,3106.9,3.21862293]
[1767874191796,0.94797264,3107.8,3106.8,6.4374793]
[1767874192356,0.94797264,3107.8,3105.5,0.002]
[1767874192561,0.94797264,3107.7,3105.9,6.77896222]
[1767874192858,0.94797264,3107.7,3106.7,6.43769313]
[1767874193062,0.94797264,3107.7,3106.8,0.87618745]
[1767874193791,0.94797264,3107.7,3106.8,4.09486804]
[1767874194190,0.94797264,3107.6,3106.8,0.844]
[1767874194398,0.94797264,3107.6,3106.8,4.06273622]
[1767874194687,0.94797264,3107.6,3106.8,4.69977922]
[1767874195587,0.001,3107.7,3106.8,4.69977922]
[1767874195786,0.001,3107.7,3106.8,7.91852519]
[1767874196390,0.001,3107.7,3106.8,4.69977922]
[1767874196574,0.94897264,3107.7,3106.8,4.69977922]
[1767874196984,0.94897264,3107.7,3106.8,1.481043]
[1767874197162,0.94897264,3107.7,3106.9,0.844]
[1767874197589,0.94897264,3107.7,3106.7,3.23893202]
[1767874197774,4.16682359,3107.7,3107.0,0.844]
[1767874198096,0.94797264,3107.6,3106.1,0.002]
[1767874198282,0.94797264,3107.5,3106.1,0.002]
[1767874200203,0.94797264,3107.3,3106.1,0.002]
[1767874201106,3.21805083,3107.5,3106.1,0.99598744]
[1767874201265,0.94797264,3107.4,3106.1,0.99598744]
[1767874201465,0.94797264,3107.4,3106.1,0.002]
[1767874201872,0.94797264,3107.4,3106.2,0.845]
[1767874202384,0.92023351,3107.2,3106.2,0.845]
[1767874202569,0.92023351,3107.0,3106.3,0.845]
[1767874203205,1.05749176,3107.1,3105.3,0.845]
[1767874203206,0.92023351,3106.8,3105.3,0.845]
[1767874203424,0.92023351,3106.6,3105.3,0.845]
[1767874204377,0.95387815,3106.4,3105.3,0.845]
[1767874204702,0.95387815,3106.2,3105.3,0.845]
[1767874206501,0.95387815,3106.0,3105.6,0.002]
[1767874207964,0.88152518,3106.0,3105.6,0.002]
[1767874208397,4.17293496,3106.5,3105.6,0.002]
[1767874208583,0.95387815,3106.4,3105.6,0.002]
[1767874208988,0.95387815,3106.9,3105.6,0.002]
[1767874209191,0.95387815,3106.8,3105.6,0.002]
[1767874209391,0.99411247,3106.8,3105.6,0.002]
[1767874209591,0.95387815,3106.8,3105.7,0.0161015]
[1767874210199,0.95387815,3107.2,3105.7,0.92253668]
[1767874210401,0.04023043,3107.1,3105.7,0.92253668]
[1767874210920,0.04023043,3107.1,3105.9,0.90643518]
[1767874210921,3.21853407,3107.1,3105.9,0.90643518]
[1767874211199,0.04023043,3107.1,3106.0,1.76752891]
[1767874212072,3.21822804,3107.3,3106.0,1.76752891]
[1767874212273,3.21822804,3107.3,3106.1,1.08318807]
[1767874212498,3.2584025,3107.4,3106.1,1.08318807]
[1767874212803,3.2584025,3107.4,3106.2,6.43873542]
[1767874213098,0.04022655,3107.4,3106.3,0.90643518]
[1767874213297,3.25837938,3107.4,3106.3,0.90643518]
[1767874213474,3.25837938,3107.4,3106.4,0.73451706]
[1767874214075,0.04022655,3107.4,3106.4,0.73451706]
[1767874214290,0.04022655,3107.4,3106.4,1.64095224]
[1767874214602,0.04022655,3107.4,3106.5,0.845]
[1767874215106,0.04022655,3107.4,3106.5,4.06400772]
[1767874215303,0.04022655,3107.4,3106.6,0.40386927]
[1767874215514,3.25835851,3107.4,3106.6,0.40386927]
[1767874215701,0.001,3107.7,3106.6,0.40386927]
[1767874215910,0.95387815,3107.5,3105.3,0.002]
[1767874216074,0.95387815,3107.4,3105.7,0.845]
[1767874216271,0.95387815,3107.2,3105.7,0.845]
[1767874216529,0.95387815,3107.0,3105.7,0.845]
[1767874216806,0.95387815,3107.0,3105.8,0.01609891]
[1767874216981,6.43728474,3106.9,3105.8,0.01609891]
[1767874217179,0.77935061,3106.8,3105.7,0.845]
[1767874218674,0.77935061,3106.8,3105.8,3.21973284]
[1767874218875,0.77935061,3106.8,3105.7,4.06483922]
[1767874218876,3.21884958,3106.7,3105.7,4.06483922]
[1767874219405,0.001,3106.6,3105.7,4.06483922]
[1767874219975,0.001,3106.6,3105.7,4.08094072]
[1767874220176,0.001,3106.6,3105.8,0.82093256]
[1767874220979,0.001,3106.6,3105.9,0.845]
[1767874222905,0.001,3106.6,3105.9,1.75143518]
[1767874223088,0.001,3106.6,3106.1,0.90643518]
[1767874223424,0.95487815,3106.6,3105.6,0.847]
[1767874223917,0.95487815,3106.6,3105.6,0.002]
[1767874224139,0.95487815,3106.6,3105.7,0.845]
[1767874224986,0.95387815,3106.4,3105.7,0.845]
[1767874225190,1.69307733,3106.3,3105.7,0.845]
[1767874225395,0.95487815,3106.6,3105.7,0.845]
[1767874225590,0.99511506,3106.6,3105.7,4.06481083]
[1767874225984,4.21407358,3106.6,3105.7,0.845]
[1767874226396,3.26019543,3106.6,3105.7,4.06487751]
[1767874226608,0.04123691,3106.6,3105.8,0.40668775]
[1767874226916,3.26021723,3106.6,3105.8,0.40668775]
[1767874227132,3.26021723,3106.6,3105.9,0.845]
[1767874229220,3.26021723,3106.6,3105.1,0.002]
[1767874229221,0.95387815,3106.5,3105.1,0.002]
[1767874229516,0.95387815,3106.3,3105.2,0.845]
[1767874230896,0.95387815,3106.3,3106.1,0.002]
[1767874231094,0.04024209,3106.2,3106.1,0.002]
[1767874231294,3.21936771,3106.2,3106.1,0.002]
[1767874231644,3.21936771,3106.2,3106.0,0.845]
[1767874232320,3.25954557,3106.3,3106.0,0.845]
[1767874232621,3.21930477,3106.3,3106.0,0.845]
[1767874234399,0.94994803,3106.2,3104.5,0.002]
[1767874234598,0.94994803,3106.2,3105.0,0.845]
[1767874236221,0.90970594,3106.0,3105.0,0.845]
[1767874236404,0.94995062,3106.0,3105.0,0.845]
[1767874236790,0.94995062,3106.0,3105.1,0.845]
[1767874237014,0.90970594,3105.8,3104.6,3.22100521]
[1767874237219,0.90970594,3105.8,3105.2,0.845]
[1767874237994,0.90970594,3105.8,3104.6,3.22100521]
[1767874238214,0.90970594,3105.8,3105.0,0.845]
[1767874238520,6.43977202,3105.7,3105.1,0.845]
[1767874238823,8.1905094,3105.7,3105.1,0.845]
[1767874239022,8.1905094,3105.7,3104.5,3.22313061]
[1767874239191,8.1905094,3105.7,3105.2,0.845]
[1767874240822,0.90970594,3106.0,3105.2,0.845]
[1767874241029,3.21946201,3106.2,3105.2,4.0653746]
[1767874241220,0.04024339,3106.1,3105.2,4.0653746]
[1767874241894,0.04024339,3106.1,3104.7,3.22087964]
[1767874241895,0.90970594,3105.9,3104.6,0.845]
[1767874242095,16.09702715,3106.2,3104.6,0.845]
[1767874242096,0.90970594,3105.7,3104.6,0.845]
[1767874242692,6.43997938,3105.6,3104.6,0.845]
[1767874243095,0.90970594,3105.5,3104.6,0.845]
[1767874243416,0.90970594,3105.5,3104.2,0.002]
[1767874243616,0.90970594,3105.1,3103.0,0.00276442]
[1767874243924,0.90970594,3104.6,3103.3,0.845]
[1767874244302,0.90970594,3104.6,3103.0,0.00276442]
[1767874244698,0.90970594,3104.6,3103.1,0.845]
[1767874244934,0.90970594,3104.4,3103.1,0.845]
[1767874245226,0.90970594,3104.2,3103.1,0.845]
[1767874246307,0.90970594,3104.2,3103.0,0.84776442]
[1767874246507,0.90970594,3104.2,3103.0,4.07037347]
[1767874246708,0.90970594,3104.2,3103.1,3.22257657]
[1767874246904,0.90970594,3104.0,3103.0,0.00276442]
[1767874247100,6.44309138,3104.1,3103.0,0.00276442]
[1767874247101,0.90970594,3103.8,3103.0,0.00276442]
[1767874248998,0.90970594,3103.8,3103.0,0.00576442]
[1767874249398,4.1316178,3103.8,3103.0,0.00576442]
[1767874249831,0.90970594,3103.8,3103.0,0.00576442]
[1767874250541,0.90970594,3103.8,3103.0,3.22845081]
[1767874250749,0.90970594,3103.8,3103.0,0.00576442]
[1767874251123,3.22116095,3104.5,3103.0,6.45112835]
[1767874251124,0.90970594,3104.5,3103.0,6.45112835]
[1767874251324,0.94997136,3104.4,3103.0,6.45112835]
[1767874251843,0.90970594,3104.4,3103.0,6.45112835]
[1767874252062,0.04026672,3104.3,3103.0,6.45112835]
[1767874253225,3.26165482,3104.3,3103.0,6.45112835]
[1767874253812,3.26165482,3104.3,3102.9,1.33007771]
[1767874253813,0.90970594,3104.2,3102.9,1.33007771]
[1767874254011,0.90970594,3104.0,3103.0,0.845]
[1767874254951,0.94997655,3104.0,3103.0,0.845]
[1767874255159,0.94997655,3104.0,3103.0,4.06768429]
[1767874255316,0.04027191,3103.9,3103.0,1.3850762]
[1767874256314,0.04027191,3103.9,3103.3,0.002]
[1767874256513,0.001,3103.7,3103.3,0.002]
[1767874257727,0.04127451,3103.7,3103.3,0.002]
[1767874258528,0.001,3103.7,3103.3,0.002]
[1767874260934,0.001,3103.7,3103.4,0.845]
[1767874261137,0.32327692,3103.7,3103.4,0.845]
[1767874261337,0.04127451,3103.7,3103.4,0.845]
[1767874261945,0.001,3103.7,3103.4,0.845]
[1767874262421,3.22133814,3104.3,3103.4,0.845]
[1767874262614,0.04026802,3104.2,3103.4,0.845]
[1767874263539,3.22133814,3104.3,3103.4,0.845]
[1767874263728,3.99967752,3104.2,3103.4,0.845]
[1767874263925,0.91249105,3104.7,3103.4,4.06726978]
[1767874264126,3.26128969,3104.6,3103.4,4.06726978]
[1767874264421,3.26128969,3104.6,3103.4,7.28954212]
[1767874264613,0.91249105,3104.7,3103.5,0.91041254]
[1767874264614,4.13341974,3104.7,3103.5,0.91041254]
[1767874264817,1.0569675,3105.4,3103.6,0.91041254]
[1767874264818,0.04026283,3104.6,3103.6,0.91041254]
[1767874265031,4.13312173,3105.0,3103.6,0.91041254]
[1767874265032,0.04026024,3104.8,3103.6,0.91041254]
[1767874265824,3.26101332,3104.9,3103.8,0.91041254]
[1767874266051,3.26101332,3104.9,3103.9,0.845]
[1767874266352,3.26101332,3104.9,3104.0,0.17554125]
[1767874266926,3.26101332,3104.9,3104.0,1.08595379]
[1767874267450,6.4817677,3104.9,3104.0,1.08595379]
[1767874267638,6.44150876,3104.9,3104.0,1.08595379]
[1767874267842,3.21992111,3105.7,3104.0,0.17554125]
[1767874267843,0.91249105,3104.7,3104.0,0.17554125]
[1767874268040,0.04026024,3104.8,3102.8,0.01579754]
[1767874268041,0.91249105,3104.5,3103.0,0.84500001]
[1767874268247,0.97851154,3103.7,3101.9,0.845]
[1767874268449,0.91249105,3103.5,3101.9,0.845]
[1767874268653,0.91249105,3103.4,3101.9,0.845]
[1767874268831,0.91249105,3103.4,3103.3,0.002]
[1767874269038,0.91249105,3103.4,3101.9,0.845]
[1767874269432,0.91249105,3103.4,3103.0,0.002]
[1767874269632,0.91249105,3103.4,3101.9,0.845]
[1767874269850,0.91249105,3103.4,3101.9,1.25209554]
[1767874270048,0.91249105,3103.2,3101.9,1.25209554]
[1767874270264,0.91249105,3103.2,3101.9,0.845]
[1767874271244,0.91249105,3103.2,3101.7,0.002]
[1767874271449,0.91249105,3103.2,3100.3,3.22545474]
[1767874271450,0.91249105,3102.4,3098.7,0.91041254]
[1767874271658,1.24651746,3103.1,3099.4,0.91041254]
[1767874271659,0.91249105,3101.9,3099.4,0.91041254]
[1767874271826,0.91249105,3101.9,3099.9,0.91041254]
[1767874272028,6.44786896,3101.8,3099.9,0.91041254]
[1767874272228,0.91249105,3101.6,3099.6,3.22622232]
[1767874272471,0.91249105,3101.6,3099.5,0.845]
[1767874272760,0.91249105,3101.6,3098.2,0.91041254]
[1767874272926,0.91249105,3101.6,3098.1,3.2277413]
[1767874272927,0.91249105,3101.2,3098.4,0.91041254]
[1767874273127,0.91249105,3101.2,3098.9,3.22694435]
[1767874273328,0.91249105,3101.2,3099.1,4.13712837]
[1767874273546,0.91249105,3101.2,3099.1,0.91041254]
[1767874273929,0.91249105,3101.0,3099.1,0.91041254]
[1767874274155,4.13715326,3101.1,3099.3,0.91041254]
[1767874274357,0.91249105,3101.5,3099.5,0.91041254]
[1767874274560,0.91249105,3101.5,3099.6,0.845]
[1767874274752,0.90949105,3101.5,3099.6,0.845]
[1767874275150,0.90949105,3101.5,3099.7,0.91041254]
[1767874275370,3.22414237,3101.6,3099.7,0.91041254]
[1767874275661,0.39601784,3101.5,3099.9,0.91041254]
[1767874276072,0.39601784,3101.5,3100.1,0.91041254]
[1767874276073,0.32466146,3101.5,3100.1,0.91041254]
[1767874276270,0.32466146,3101.5,3100.2,0.846]
[1767874276271,0.91249105,3101.4,3100.2,0.846]
[1767874276460,6.77317282,3101.5,3100.2,0.846]
[1767874276763,6.77317282,3101.5,3100.3,0.846]
[1767874276954,0.67731728,3101.4,3100.3,0.846]
[1767874277564,3.2241227,3101.7,3100.3,0.846]
[1767874278064,4.13645689,3101.8,3100.4,3.22539027]
[1767874278261,7.36042273,3101.8,3100.4,3.22539027]
[1767874278664,4.13645689,3101.8,3100.4,6.45078054]
[1767874278963,3.22396584,3101.8,3100.4,6.45078054]
[1767874279264,3.26384984,3102.2,3100.5,0.91041254]
[1767874279464,6.4874057,3102.2,3100.5,0.91041254]
[1767874279664,3.22355586,3102.2,3100.5,0.91041254]
[1767874279971,3.26384984,3102.2,3100.6,6.45036444]
[1767874280149,0.04029398,3102.2,3100.7,0.91041254]
[1767874280462,3.22320709,3102.5,3100.8,0.91041254]
[1767874280668,0.04029138,3102.4,3101.0,0.91041254]
[1767874280872,0.04029008,3102.5,3101.0,0.91041254]
[1767874281240,3.26297131,3103.0,3101.0,0.91041254]
[1767874281570,6.48565903,3103.0,3101.0,0.91041254]
[1767874281780,0.91249105,3102.8,3101.0,0.91041254]
[1767874282069,3.2231032,3102.6,3101.2,6.44911646]
[1767874282271,0.04029008,3102.5,3101.2,10.58408723]
[1767874282571,0.04028749,3102.7,3101.3,0.91041254]
[1767874282748,0.91249105,3103.2,3101.3,0.91041254]
[1767874282749,3.22268772,3103.0,3101.3,0.91041254]
[1767874283067,0.04028489,3102.9,3101.3,0.91041254]
[1767874284194,0.91249105,3102.3,3100.6,0.002]
[1767874284336,0.91249105,3102.1,3100.6,0.002]
[1767874284541,0.91249105,3101.9,3100.6,0.002]
[1767874284742,0.91249105,3101.7,3100.6,0.002]
[1767874284951,0.91249105,3101.5,3100.6,0.002]
[1767874285155,0.04030437,3101.4,3100.6,0.002]
[1767874286347,3.26437966,3101.7,3100.6,0.002]
[1767874287081,6.48845884,3101.7,3100.6,0.002]
[1767874287377,6.44815836,3101.7,3100.6,0.002]
[1767874287747,3.22407918,3101.7,3100.6,0.002]
[1767874287943,3.26437966,3101.7,3100.6,0.002]
[1767874288148,6.48845884,3101.7,3100.6,0.002]
[1767874288350,6.44815836,3101.7,3100.6,0.002]